bitfinex-derivatives/quotes_ETHF0:USTF0_20250507
["timestamp","ask_amount","ask_price","bid_price","bid_amount"]
[1746610009823,6.84119,1840.7,1840.6,3.6876]
[1746610011025,5.7546,1840.7,1840.6,3.6876]
[1746610011526,4.158,1840.7,1840.6,3.6876]
[1746610017130,6.94799,1840.7,1840.6,1.0866]
[1746610019724,6.94799,1840.7,1840.6,2.7898]
[1746610022442,6.94799,1840.7,1840.6,1.0866]
[1746610026239,5.8614,1840.7,1840.6,2.759]
[1746610026438,5.8614,1840.7,1840.6,3.6246]
[1746610027145,6.94799,1840.7,1840.6,3.6246]
[1746610027343,5.8614,1840.7,1840.6,3.6246]
[1746610027549,6.94799,1840.7,1840.6,3.6246]
[1746610027942,5.8614,1840.7,1840.6,3.6246]
[1746610029045,4.158,1840.7,1840.6,3.6246]
[1746610029233,4.43512,1840.9,1840.6,2.538]
[1746610029438,4.43512,1840.9,1840.8,1.08653]
[1746610031145,1.08653,1840.8,1840.7,1.08654]
[1746610031347,5.98473,1840.8,1840.7,1.08654]
[1746610031547,1.08665,1840.7,1840.6,1.08661]
[1746610031846,2.77705,1840.7,1840.6,1.08661]
[1746610039949,1.6904,1840.7,1840.6,1.08661]
[1746610040454,2.77699,1840.7,1840.6,1.08661]
[1746610041051,1.6904,1840.7,1840.6,1.08661]
[1746610041751,2.77699,1840.7,1840.6,1.08661]
[1746610050857,1.6904,1840.7,1840.6,1.08661]
[1746610051249,1.6904,1840.7,1840.6,2.73921]
[1746610053154,1.6904,1840.7,1840.6,3.55491]
[1746610053558,2.77699,1840.7,1840.6,3.55491]
[1746610055759,2.77699,1840.7,1840.6,10.79837106]
[1746610057062,1.6904,1840.7,1840.6,8.33007106]
[1746610057262,2.77699,1840.7,1840.6,8.33007106]
[1746610059255,4.157,1840.8,1840.7,1.08659]
[1746610059461,4.157,1840.8,1840.7,3.58959]
[1746610059662,1.92489,1840.9,1840.8,1.08653]
[1746610059858,6.08089,1840.9,1840.8,3.59303]
[1746610060165,7.69889,1840.9,1840.8,3.59303]
[1746610060559,6.6124,1840.9,1840.8,3.59303]
[1746610060755,5.774,1840.9,1840.8,3.59303]
[1746610061860,4.156,1840.9,1840.8,3.59303]
[1746610063668,4.156,1840.9,1840.8,6.80083]
[1746610063964,3.2078,1841.3,1841.2,1.0863]
[1746610063965,4.29409,1841.3,1841.2,1.0863]
[1746610064155,6.82379,1841.3,1841.2,1.0863]
[1746610064357,10.97879,1841.3,1841.2,1.0863]
[1746610070671,7.77099,1841.3,1841.2,1.0863]
[1746610072678,6.6847,1841.3,1841.2,1.0863]
[1746610072877,7.77094,1841.3,1841.2,1.0863]
[1746610089294,7.77094,1841.3,1841.2,1.9445]
[1746610090190,7.77094,1841.3,1841.2,3.5982]
[1746610094597,7.77094,1841.3,1841.2,1.9445]
[1746610095505,7.77094,1841.3,1841.2,1.0863]
[1746610095994,1.08636,1841.2,1841.1,1.08631]
[1746610096294,3.53736,1841.2,1841.1,1.08631]
[1746610097191,1.08636,1841.1,1841.0,1.08639]
[1746610097396,2.70156,1841.1,1841.0,1.08639]
[1746610099586,1.6152,1841.1,1840.9,3.2078]
[1746610099794,3.52052,1841.0,1840.9,4.29422]
[1746610101300,3.52052,1841.0,1840.9,1.08642]
[1746610101796,1.08647,1840.9,1840.8,3.2078]
[1746610101996,3.55887,1840.9,1840.8,1.08649]
[1746610102893,3.55887,1840.9,1840.8,1.08653]
[1746610103095,1.08653,1840.8,1840.7,8.33001106]
[1746610103400,2.72423,1840.8,1840.7,8.33001106]
[1746610106105,2.72423,1840.8,1840.7,1.08655]
[1746610106905,1.6377,1840.8,1840.7,1.08655]
[1746610107206,1.92483,1841.0,1840.9,1.08647]
[1746610107796,1.92483,1841.0,1840.9,3.69027]
[1746610109807,3.67253,1841.0,1840.9,3.69027]
[1746610113902,1.7477,1841.0,1840.9,3.69027]
[1746610116809,5.001,1841.2,1841.1,1.08636]
[1746610117004,4.153,1841.2,1841.1,1.08636]
[1746610117205,4.153,1841.2,1841.1,3.67636]
[1746610117718,5.2393,1841.2,1841.1,3.67636]
[1746610118117,6.8966,1841.2,1841.1,3.67636]
[1746610119609,6.8966,1841.2,1841.1,1.08636]
[1746610122118,1.08642,1841.1,1841.0,1.08636]
[1746610122318,4.54652,1841.1,1841.0,1.08636]
[1746610122718,4.54652,1841.1,1840.9,1.08643]
[1746610122719,1.08647,1841.0,1840.9,1.08643]
[1746610122920,2.79987,1841.0,1840.9,1.08643]
[1746610126721,1.7134,1841.0,1840.9,1.08643]
[1746610126921,5.23935,1841.2,1841.1,1.08636]
[1746610127116,6.84775,1841.2,1841.1,1.08636]
[1746610127318,1.6084,1841.2,1841.1,1.08636]
[1746610127714,1.6084,1841.2,1841.1,2.76526]
[1746610127923,2.6947,1841.2,1841.1,2.76526]
[1746610128924,1.6084,1841.2,1841.1,2.76526]
[1746610129522,2.6947,1841.2,1841.1,2.76526]
[1746610131923,1.6084,1841.2,1841.1,2.76526]
[1746610132225,2.6947,1841.2,1841.1,2.76526]
[1746610135326,2.6947,1841.2,1841.1,1.08636]
[1746610141726,1.6084,1841.2,1841.1,1.08636]
[1746610142130,1.6084,1841.2,1841.1,2.67476]
[1746610142728,2.6947,1841.2,1841.1,2.67476]
[1746610151531,2.6947,1841.2,1841.1,1.08636]
[1746610151726,1.08642,1841.1,1841.0,1.08638]
[1746610151932,1.08642,1841.0,1840.9,11.53769106]
[1746610152131,2.70422,1841.0,1840.9,11.53769106]
[1746610152637,2.70422,1841.0,1840.9,11.53773106]
[1746610152839,10.06102,1841.0,1840.9,7.24346106]
[1746610153227,13.66102,1841.0,1840.9,7.24346106]
[1746610154847,1.08663,1840.7,1840.6,1.08658]
[1746610155743,2.75083,1840.7,1840.6,1.08658]
[1746610157440,1.6642,1840.7,1840.6,1.08658]
[1746610157843,0.8103,1840.7,1840.6,2.69538]
[1746610158947,1.6501,1840.8,1840.7,1.08659]
[1746610159140,4.29431,1840.9,1840.8,1.08653]
[1746610159339,6.02501,1840.9,1840.8,1.08653]
[1746610162349,1.08659,1840.8,1840.7,1.08654]
[1746610162549,4.33169,1840.8,1840.7,1.08654]
[1746610168749,4.33169,1840.8,1840.7,2.73134]
[1746610169054,3.2451,1840.8,1840.7,2.73134]
[1746610171752,4.33163,1840.8,1840.7,2.73134]
[1746610175854,3.2451,1840.8,1840.7,2.73134]
[1746610176050,2.4157,1840.8,1840.7,2.73134]
[1746610176554,6.02626,1841.0,1840.9,1.08647]
[1746610176743,7.76466,1841.0,1840.9,1.08647]
[1746610176948,7.76466,1841.0,1840.9,1.94457]
[1746610181257,7.76466,1841.0,1840.9,0.8581]
[1746610181457,7.76466,1841.0,1840.9,1.94457]
[1746610186961,7.76466,1841.0,1840.9,1.26525341]
[1746610187160,7.76466,1841.0,1840.9,1.08647]
[1746610193668,5.8874,1841.0,1840.9,1.08647]
[1746610193857,5.8874,1841.0,1840.9,2.78107]
[1746610194164,5.8874,1841.0,1840.9,3.58667]
[1746610198265,6.7503,1841.0,1840.9,2.78107]
[1746610198659,6.7503,1841.0,1840.9,1.08647]
[1746610199567,7.83672,1841.0,1840.9,1.08647]
[1746610208368,6.7503,1841.0,1840.9,1.08647]
[1746610209778,7.83672,1841.0,1840.9,1.08647]
[1746610210972,5.8874,1841.0,1840.9,1.08647]
[1746610211174,5.8874,1841.0,1840.9,2.76807]
[1746610212772,6.97382,1841.0,1840.9,2.76807]
[1746610212973,5.8874,1841.0,1840.9,2.76807]
[1746610215473,4.149,1841.0,1840.9,2.76807]
[1746610217878,5.8267,1841.0,1840.9,2.76807]
[1746610220779,5.8267,1841.0,1840.9,1.08647]
[1746610222377,5.8267,1841.0,1840.9,2.70957]
[1746610225383,4.149,1841.0,1840.9,2.70957]
[1746610227080,6.97572,1841.0,1840.9,2.70957]
[1746610227281,6.97572,1841.0,1840.9,1.08647]
[1746610227282,5.8893,1841.0,1840.9,1.08647]
[1746610234680,6.97572,1841.0,1840.9,1.08647]
[1746610234882,1.08647,1840.9,1840.8,11.53775106]
[1746610235083,4.47317,1840.9,1840.8,11.53775106]
[1746610235993,3.3867,1840.9,1840.8,11.53775106]
[1746610236485,4.47317,1840.9,1840.8,11.53775106]
[1746610238684,4.47317,1840.9,1840.8,4.29429]
[1746610242390,4.47317,1840.9,1840.8,1.08649]
[1746610243993,3.3867,1840.9,1840.8,1.08649]
[1746610244489,3.3867,1840.9,1840.8,2.83319]
[1746610245090,2.5468,1840.9,1840.8,2.83319]
[1746610245290,1.6817,1840.9,1840.8,3.68209]
[1746610248699,4.149,1841.0,1840.9,1.08647]
[1746610248899,5.8544,1841.0,1840.9,1.08647]
[1746610251494,5.8544,1841.0,1840.9,3.61607]
[1746610251894,1.7054,1841.0,1840.9,3.61607]
[1746610253003,1.7054,1841.0,1840.9,6.82387]
[1746610253301,0.8693,1841.1,1841.0,1.08642]
[1746610253599,0.8693,1841.1,1841.0,2.72172]
[1746610256307,2.4748,1841.1,1841.0,2.72172]
[1746610256606,3.2887,1841.1,1841.0,2.72172]
[1746610261502,1.6055,1841.1,1841.0,2.72172]
[1746610263500,4.143,1841.2,1841.1,1.08636]
[1746610263703,4.143,1841.2,1841.1,3.65756]
[1746610263996,5.2293,1841.2,1841.1,3.65756]
[1746610264207,6.8843,1841.2,1841.1,1.08636]
[1746610264506,5.798,1841.2,1841.1,1.08636]
[1746610268002,6.8843,1841.2,1841.1,1.08636]
[1746610271209,5.798,1841.2,1841.1,1.08636]
[1746610272613,6.8843,1841.2,1841.1,1.08636]
[1746610274710,1.08642,1841.0,1840.9,8.32989106]
[1746610275517,2.78102,1841.0,1840.9,8.32989106]
[1746610275812,1.08653,1840.9,1840.8,1.08649]
[1746610276012,2.78113,1840.9,1840.8,1.08649]
[1746610276810,1.08653,1840.8,1840.7,18.10865266]
[1746610277012,4.38963,1840.8,1840.7,18.10865266]
[1746610277200,7.98963,1840.8,1840.7,18.10865266]
[1746610279322,9.61945,1840.8,1840.4,1.08671]
[1746610279612,1.08677,1840.5,1840.4,1.08671]
[1746610280413,4.42227,1840.5,1840.4,1.08671]
[1746610284119,3.3355,1840.5,1840.4,1.08671]
[1746610284522,4.141,1840.6,1840.5,1.08671]
[1746610284716,4.141,1840.6,1840.5,2.79651]
[1746610288519,5.22765,1840.6,1840.5,2.79651]
[1746610288820,6.82065,1840.6,1840.5,2.79651]
[1746610289320,5.734,1840.6,1840.5,2.79651]
[1746610290318,6.82065,1840.6,1840.5,2.79651]
[1746610291321,2.67965,1840.6,1840.5,2.79651]
[1746610291525,1.593,1840.6,1840.5,2.79651]
[1746610291722,1.08664,1840.7,1840.5,2.79651]
[1746610291723,1.08664,1840.7,1840.6,1.08665]
[1746610292022,1.08664,1840.7,1840.6,2.70395]
[1746610292517,1.7197,1840.7,1840.6,2.70395]
[1746610292712,2.80629,1840.7,1840.6,2.70395]
[1746610298025,1.7197,1840.7,1840.6,2.70395]
[1746610298226,2.80629,1840.7,1840.6,2.70395]
[1746610298430,1.7197,1840.7,1840.6,2.70395]
[1746610299120,2.80629,1840.7,1840.6,2.70395]
[1746610301128,1.7197,1840.7,1840.6,2.70395]
[1746610301424,5.7263,1840.8,1840.7,1.08659]
[1746610301620,5.7263,1840.8,1840.7,2.79239]
[1746610304334,7.4753,1840.8,1840.7,2.79239]
[1746610306531,8.56183,1840.8,1840.7,2.79239]
[1746610306736,7.4753,1840.8,1840.7,2.79239]
[1746610308930,5.89,1840.8,1840.7,1.08659]
[1746610309232,0.8752,1841.2,1841.1,1.08636]
[1746610309635,1.08642,1841.1,1841.0,1.08637]
[1746610309833,1.08645,1841.0,1840.9,1.08642]
[1746610310134,13.63205,1841.0,1840.9,1.08642]
[1746610313424,12.5456,1841.0,1840.9,1.08642]
[1746610313628,9.3378,1841.0,1840.9,1.08642]
[1746610314136,5.7378,1841.0,1840.9,1.08642]
[1746610314436,5.7378,1841.0,1840.9,2.74582]
[1746610315925,0.8752,1841.2,1840.9,2.74582]
[1746610315926,0.8752,1841.2,1841.1,1.08636]
[1746610316230,2.5563,1841.2,1841.1,1.08636]
[1746610316538,4.4752,1841.2,1841.1,1.08636]
[1746610316733,3.3889,1841.2,1841.1,1.08636]
[1746610316935,4.4752,1841.2,1841.1,1.08636]
[1746610317234,3.3889,1841.2,1841.1,1.08636]
[1746610317636,4.4752,1841.2,1841.1,1.08636]
[1746610319339,3.3889,1841.2,1841.1,1.08636]
[1746610320335,4.4752,1841.2,1841.1,1.08636]
[1746610320642,1.08642,1841.1,1841.0,1.08637]
[1746610320829,2.73622,1841.1,1841.0,1.08637]
[1746610321138,6.33622,1841.1,1841.0,1.08637]
[1746610321445,1.08642,1841.0,1840.9,4.29424]
[1746610321634,3.59602,1841.0,1840.9,4.29424]
[1746610321940,3.59602,1841.0,1840.9,1.08644]
[1746610322141,7.19602,1841.0,1840.9,1.08644]
[1746610326451,1.08653,1840.9,1840.7,2.71644]
[1746610326636,1.88823,1840.9,1840.8,1.08649]
[1746610327135,5.48823,1840.9,1840.8,1.08649]
[1746610327532,3.6,1840.9,1840.8,1.08649]
[1746610327738,3.6,1840.9,1840.8,2.82679]
[1746610327939,3.6,1840.9,1840.8,3.61809]
[1746610328243,4.9988,1841.0,1840.9,1.08647]
[1746610328942,6.08522,1841.0,1840.9,1.08647]
[1746610329142,9.68522,1841.0,1840.9,1.08647]
[1746610329331,8.5988,1841.0,1840.9,1.08647]
[1746610329746,8.5988,1841.0,1840.9,2.79157]
[1746610330138,4.9988,1841.0,1840.9,2.79157]
[1746610331347,6.08522,1841.0,1840.9,1.08647]
[1746610332239,9.68522,1841.0,1840.9,1.08647]
[1746610334344,6.08522,1841.0,1840.9,1.08647]
[1746610335149,9.68522,1841.0,1840.9,1.08647]
[1746610338151,6.08522,1841.0,1840.9,1.08647]
[1746610341145,9.68522,1841.0,1840.9,1.08647]
[1746610343950,11.26862,1841.0,1840.9,1.08647]
[1746610344557,10.1822,1841.0,1840.9,1.08647]
[1746610344759,11.26862,1841.0,1840.9,1.08647]
[1746610346058,7.66862,1841.0,1840.9,1.08647]
[1746610346260,5.7224,1841.0,1840.9,1.08647]
[1746610346461,6.0251,1841.1,1841.0,1.08642]
[1746610346854,6.0251,1841.1,1841.0,2.76642]
[1746610347050,7.708,1841.1,1841.0,2.76642]
[1746610348166,11.308,1841.1,1841.0,1.08642]
[1746610349070,7.708,1841.1,1841.0,1.08642]
[1746610349860,2.7161,1841.0,1840.7,7.24346106]
[1746610350060,1.08653,1840.8,1840.7,7.24346106]
[1746610350260,1.08653,1840.8,1840.7,8.33005106]
[1746610350563,7.75523,1840.8,1840.7,7.24346106]
[1746610351067,11.35523,1840.8,1840.7,7.24346106]
[1746610351269,16.35523,1840.8,1840.7,7.24346106]
[1746610352063,11.35523,1840.8,1840.7,7.24346106]
[1746610352468,1.08671,1840.5,1840.4,1.08673]
[1746610354163,1.91321,1840.5,1840.4,1.08673]
[1746610355167,3.6,1840.5,1840.4,1.08673]
[1746610355362,3.6,1840.5,1840.4,2.66703]
[1746610356066,1.6807,1840.6,1840.5,1.08671]
[1746610356269,1.6807,1840.6,1840.5,3.52261]
[1746610357066,2.76735,1840.6,1840.5,3.52261]
[1746610358269,1.6807,1840.6,1840.5,3.52261]
[1746610358766,2.76735,1840.6,1840.5,3.52261]
[1746610358969,1.6807,1840.6,1840.5,3.52261]
[1746610359170,2.76735,1840.6,1840.5,3.52261]
[1746610360574,2.76735,1840.6,1840.5,2.66701]
[1746610360769,3.60955,1840.6,1840.5,1.08671]
[1746610361267,1.08677,1840.5,1840.4,1.08675]
[1746610361472,1.08677,1840.5,1840.2,8.33033106]
[1746610361473,8.54553,1840.5,1840.2,8.33033106]
[1746610361672,1.08683,1840.3,1840.2,7.24346106]
[1746610361861,4.29463,1840.3,1840.2,7.24346106]
[1746610362067,5.13683,1840.3,1840.2,8.33035106]
[1746610362274,15.42743,1840.3,1840.2,7.24346106]
[1746610362674,10.42743,1840.3,1840.2,7.24346106]
[1746610362877,1.08689,1840.2,1840.1,10.8651916]
[1746610363071,6.82799,1840.2,1840.1,10.8651916]
[1746610363277,10.42799,1840.2,1840.1,6.88495266]
[1746610363973,1.08705,1840.0,1839.9,1.08702]
[1746610364171,1.08706,1839.9,1839.8,8.3411527]
[1746610364371,2.69016,1839.9,1839.8,8.3411527]
[1746610364964,3.51696,1839.9,1839.8,8.3411527]
[1746610365165,7.11696,1839.9,1839.8,8.3411527]
[1746610365569,11.25496,1839.9,1839.8,8.3411527]
[1746610365776,10.1679,1839.9,1839.8,8.3411527]
[1746610367078,10.1679,1839.9,1839.8,1.08708]
[1746610368177,10.1679,1839.9,1839.8,2.70308]
[1746610369278,6.5679,1839.9,1839.8,2.70308]
[1746610371178,10.1679,1839.9,1839.8,2.70308]
[1746610371679,10.1679,1839.9,1839.8,1.08708]
[1746610373184,6.5679,1839.9,1839.8,1.08708]
[1746610373682,7.89479,1840.1,1839.8,1.08708]
[1746610373683,3.6,1840.1,1839.8,6.7018]
[1746610373884,3.6,1840.1,1840.0,1.08701]
[1746610374188,1.5885,1840.3,1840.2,1.08689]
[1746610375086,5.1885,1840.3,1840.2,1.08689]
[1746610375482,5.1885,1840.3,1840.2,2.83799]
[1746610376281,1.5885,1840.3,1840.2,2.83799]
[1746610377993,2.67533,1840.3,1840.2,1.08689]
[1746610378196,7.08203,1840.3,1840.2,1.08689]
[1746610378594,5.9952,1840.3,1840.2,1.08689]
[1746610380094,2.3952,1840.3,1840.2,1.08689]
[1746610381190,7.08203,1840.3,1840.2,1.08689]
[1746610381696,1.08696,1840.2,1840.1,1.08691]
[1746610381883,2.79386,1840.2,1840.1,1.08691]
[1746610382081,6.39386,1840.2,1840.1,1.08691]
[1746610384389,5.3069,1840.2,1840.1,1.08691]
[1746610385094,6.39379,1840.2,1840.1,1.08691]
[1746610392291,8.0242,1840.2,1839.9,2.71767]
[1746610392491,2.7343,1840.1,1840.0,1.08695]
[1746610392796,3.5373,1840.1,1840.0,1.08695]
[1746610393200,7.1373,1840.1,1840.0,1.08695]
[1746610393395,3.6,1840.1,1840.0,1.08695]
[1746610393594,3.6,1840.1,1840.0,12.56335]
[1746610394094,0.8067,1840.3,1840.2,1.08689]
[1746610394296,2.4775,1840.3,1840.2,1.08689]
[1746610394497,1.6708,1840.3,1840.2,1.08689]
[1746610394700,4.145,1840.4,1840.3,1.08683]
[1746610394999,7.3528,1840.5,1840.4,1.08677]
[1746610395201,7.3528,1840.5,1840.4,1.90567]
[1746610395401,7.3528,1840.5,1840.4,3.51207]
[1746610396304,8.971,1840.5,1840.4,1.08677]
[1746610396699,10.05771,1840.5,1840.4,1.08677]
[1746610397098,13.65771,1840.5,1840.4,1.08677]
[1746610397306,13.65775,1840.5,1840.4,1.08677]
[1746610403906,1.08677,1840.4,1840.3,1.08678]
[1746610404106,2.75297,1840.4,1840.3,1.08678]
[1746610405604,6.35297,1840.4,1840.3,1.08678]
[1746610406609,7.20117,1840.4,1840.3,1.08678]
[1746610410210,7.20117,1840.4,1840.3,2.78588]
[1746610411310,7.20117,1840.4,1840.3,1.08678]
[1746610427931,7.20117,1840.4,1840.1,5.92514]
[1746610427932,1.08695,1840.2,1840.1,1.0869]
[1746610428140,8.84095,1840.2,1840.1,1.0869]
[1746610428429,10.59505,1840.2,1840.1,1.0869]
[1746610433035,1.08701,1840.1,1840.0,1.08696]
[1746610433237,3.61071,1840.1,1840.0,1.08696]
[1746610434134,7.21071,1840.1,1840.0,1.08696]
[1746610434532,1.08701,1840.0,1839.9,1.08702]
[1746610434738,3.67191,1840.0,1839.9,1.08702]
[1746610435237,7.27191,1840.0,1839.9,1.08702]
[1746610436445,6.1849,1840.0,1839.9,1.08702]
[1746610436633,7.27191,1840.0,1839.9,1.08702]
[1746610441736,3.6,1840.0,1839.9,1.08702]
[1746610441942,4.9418,1840.3,1840.0,2.71738]
[1746610442143,4.139,1840.3,1840.2,1.08689]
[1746610442743,1.6157,1840.4,1840.3,1.08683]
[1746610442944,5.754,1840.5,1840.4,1.08677]
[1746610443137,4.139,1840.5,1840.4,2.69907]
[1746610444255,1.6157,1840.6,1840.5,1.08671]
[1746610444440,1.6157,1840.6,1840.5,5.90681]
[1746610445341,6.8406,1840.7,1840.6,1.08665]
[1746610445541,6.8406,1840.7,1840.6,2.69835]
[1746610446144,10.4406,1840.7,1840.6,2.69835]
[1746610447549,9.354,1840.7,1840.6,2.69835]
[1746610447744,10.44059,1840.7,1840.6,2.69835]
[1746610447940,12.18229,1840.7,1840.6,2.69835]
[1746610450248,8.58229,1840.7,1840.6,2.69835]
[1746610451154,12.18229,1840.7,1840.6,2.69835]
[1746610461567,12.18229,1840.7,1840.6,1.08665]
[1746610466273,1.08665,1840.6,1840.5,3.55756]
[1746610466473,2.68925,1840.6,1840.5,3.55756]
[1746610467174,6.28925,1840.6,1840.5,3.55756]
[1746610468776,6.28925,1840.6,1840.5,1.08666]
[1746610472777,1.08689,1840.3,1840.2,3.2078]
[1746610472986,1.08689,1840.3,1840.2,1.08683]
[1746610473282,4.68689,1840.3,1840.2,1.08683]
[1746610473685,6.39059,1840.3,1840.2,1.08683]
[1746610473887,5.3037,1840.3,1840.2,1.08683]
[1746610474084,2.79053,1840.3,1840.2,1.08683]
[1746610475086,6.39053,1840.3,1840.2,1.08683]
[1746610479090,2.79053,1840.3,1840.2,1.08683]
[1746610482593,2.79053,1840.3,1840.2,2.70543]
[1746610483087,1.7037,1840.3,1840.2,2.70543]
[1746610483794,2.79053,1840.3,1840.2,2.70543]
[1746610484996,1.7037,1840.3,1840.2,2.70543]
[1746610485197,5.3037,1840.3,1840.2,2.70543]
[1746610486090,3.6,1840.3,1840.2,2.70543]
[1746610486297,4.138,1840.5,1840.4,1.08677]
[1746610486597,4.138,1840.5,1840.4,4.29457]
[1746610487087,4.138,1840.5,1840.4,6.00157]
[1746610487898,1.6615,1840.6,1840.5,1.08671]
[1746610488097,1.6615,1840.6,1840.5,2.70651]
[1746610504203,1.6615,1840.6,1840.5,1.08671]
[1746610511008,1.6615,1840.6,1840.5,4.29451]
[1746610523523,1.6615,1840.6,1840.5,1.08671]
[1746610523825,1.6615,1840.6,1840.5,4.29451]
[1746610528423,1.6615,1840.6,1840.5,1.08671]
[1746610528627,1.6615,1840.6,1840.5,4.29451]
[1746610533330,1.6615,1840.6,1840.5,1.08671]
[1746610533725,1.6615,1840.6,1840.5,4.29451]
[1746610536125,1.6615,1840.6,1840.5,11.54924282]
[1746610537932,1.6615,1840.6,1840.5,8.34144282]
[1746610538125,1.6615,1840.6,1840.5,11.54924282]
[1746610541737,1.6615,1840.6,1840.5,8.34144282]
[1746610542032,1.6615,1840.6,1840.5,11.54924282]
[1746610550135,3.2078,1841.2,1840.5,10.46253282]
[1746610550338,10.83275299,1841.4,1841.3,1.08624]
[1746610550540,12.76983299,1841.4,1841.3,1.08624]
[1746610550741,1.08626,1841.3,1841.2,1.08626]
[1746610550936,5.9234,1841.3,1840.8,3.2078]
[1746610551135,1.08644,1841.0,1840.9,1.08643]
[1746610551330,1.08647,1840.9,1840.8,3.2078]
[1746610551538,1.92687,1840.9,1840.8,1.08653]
[1746610552339,5.52687,1840.9,1840.8,1.08653]
[1746610553845,4.4404,1840.9,1840.7,1.08654]
[1746610554049,5.52691,1840.9,1840.8,1.08653]
[1746610571664,6.36321,1840.9,1840.8,1.08653]
[1746610574366,7.97811,1840.9,1840.8,1.08653]
[1746610575767,1.08659,1840.8,1840.7,1.08653]
[1746610575962,2.70149,1840.8,1840.7,1.08653]
[1746610576161,6.30149,1840.8,1840.7,1.08653]
[1746610581871,6.30149,1840.8,1840.7,1.08653]
[1746610599585,5.2149,1840.8,1840.7,1.08653]
[1746610599786,3.6,1840.8,1840.7,3.55903]
[1746610600189,6.05582,1840.9,1840.8,1.08653]
[1746610600382,7.69602,1840.9,1840.8,2.71043]
[1746610601188,11.29602,1840.9,1840.8,2.71043]
[1746610602290,7.69602,1840.9,1840.8,2.71043]
[1746610602891,7.69602,1840.9,1840.8,3.54973]
[1746610603083,11.29602,1840.9,1840.8,3.54973]
[1746610604186,11.29602,1840.9,1840.8,1.08653]
[1746610604387,1.08659,1840.8,1840.7,1.08655]
[1746610604591,3.63599,1840.8,1840.7,1.08655]
[1746610605092,7.23599,1840.8,1840.7,1.08655]
[1746610612401,5.3073,1840.8,1840.7,1.08655]
[1746610612594,5.3073,1840.8,1840.7,3.62995]
[1746610613200,1.7073,1840.8,1840.7,3.62995]
[1746610613404,6.05581,1840.9,1840.8,1.08653]
[1746610613701,6.05581,1840.9,1840.8,3.65773]
[1746610614097,9.65581,1840.9,1840.8,3.65773]
[1746610614303,11.27871,1840.9,1840.8,3.65773]
[1746610615097,3.6,1840.9,1840.8,3.65773]
[1746610616301,2.70928,1841.1,1841.0,1.08642]
[1746610617102,6.30928,1841.1,1841.0,1.08642]
[1746610618302,5.2229,1841.1,1841.0,1.08642]
[1746610619296,5.2229,1841.1,1841.0,2.71282]
[1746610619804,6.30926,1841.1,1841.0,2.71282]
[1746610620909,6.30926,1841.1,1841.0,1.08642]
[1746610624711,3.2078,1841.3,1841.2,1.0863]
[1746610624912,1.08619,1841.4,1841.3,1.08624]
[1746610625113,1.6719,1841.4,1841.3,1.08624]
[1746610625416,2.75808,1841.4,1841.3,1.08624]
[1746610626217,6.35808,1841.4,1841.3,1.08624]
[1746610630110,5.2719,1841.4,1841.3,1.08624]
[1746610630310,6.35808,1841.4,1841.3,1.08624]
[1746610636720,1.0863,1841.3,1841.2,1.08626]
[1746610636926,3.645,1841.3,1841.2,1.08626]
[1746610637122,1.0863,1841.2,1841.1,1.08632]
[1746610637332,1.08642,1841.1,1841.0,1.08637]
[1746610637825,3.60922,1841.1,1841.0,1.08637]
[1746610638123,7.20922,1841.1,1841.0,1.08637]
[1746610640330,6.1228,1841.1,1841.0,1.08637]
[1746610641130,2.5228,1841.1,1841.0,1.08637]
[1746610641828,2.5228,1841.1,1841.0,2.77707]
[1746610644034,3.60916,1841.1,1841.0,2.77707]
[1746610644222,0.8293,1841.2,1841.1,1.08636]
[1746610644426,2.4325,1841.2,1841.1,3.70796]
[1746610645134,6.0325,1841.2,1841.1,3.70796]
[1746610646134,2.4325,1841.2,1841.1,3.70796]
[1746610646829,7.6093,1841.4,1841.1,2.6216]
[1746610646830,7.89403,1841.4,1841.1,2.6216]
[1746610647031,7.16323,1841.4,1841.3,1.08624]
[1746610647330,3.56323,1841.4,1841.3,1.08624]
[1746610648135,7.16323,1841.4,1841.3,1.08624]
[1746610653043,1.0863,1841.3,1841.2,1.08626]
[1746610653333,1.08636,1841.2,1841.1,1.08631]
[1746610653537,2.77796,1841.2,1841.1,1.08631]
[1746610653739,4.47156,1841.2,1841.1,1.08631]
[1746610654131,1.08642,1841.1,1841.0,1.08636]
[1746610654332,2.78002,1841.1,1841.0,1.08636]
[1746610655341,6.38002,1841.1,1841.0,1.08636]
[1746610664449,1.08647,1841.0,1840.7,5.92425]
[1746610664652,1.91373,1840.9,1840.8,5.21448]
[1746610664849,2.77493,1840.9,1840.8,5.21448]
[1746610665037,4.50323,1840.9,1840.8,5.21448]
[1746610665242,8.10323,1840.9,1840.8,5.21448]
[1746610666646,8.10323,1840.9,1840.8,1.08648]
[1746610680267,1.08659,1840.8,1840.7,1.08654]
[1746610680466,2.81229,1840.8,1840.7,1.08654]
[1746610681168,6.41229,1840.8,1840.7,1.08654]
[1746610682263,5.3257,1840.8,1840.7,1.08654]
[1746610682465,5.3257,1840.8,1840.7,2.75274]
[1746610682965,5.3257,1840.8,1840.7,3.56484]
[1746610683167,1.08647,1841.0,1840.9,1.08647]
[1746610683367,2.70626,1841.1,1841.0,1.08642]
[1746610683767,4.4618,1841.2,1841.1,1.08636]
[1746610683970,5.5481,1841.2,1841.1,1.08636]
[1746610684172,7.168,1841.2,1841.1,2.68646]